fUST/lending_fUST_20250103
["ID","MTS","AMOUNT","RATE_DAILY","PERIOD"]
[347559606,1735918236388,-500.0,0.00019452,3]
[347559607,1735918236398,-500.0,0.00019452,3]
[347559608,1735918236407,-1502.87,0.00019452,3]
[347559609,1735918236416,-8982.95,0.00019452,3]
[347559610,1735918236426,-4309.39,0.00019452,3]
[347559611,1735918236439,-904.65,0.00019452,3]
[347559612,1735918236448,-500.0,0.00019452,3]
[347559613,1735918236457,-1431.87,0.00019452,3]
[347559614,1735918236466,-615.08994851,0.00019452,3]
[347559615,1735918236475,-500.0,0.00019452,3]
[347559616,1735918236484,-500.0,0.00019452,3]
[347559617,1735918236493,-500.0,0.00019452,3]
[347559618,1735918236502,-500.0,0.00019452,3]
[347559619,1735918236511,-507.03,0.00019452,3]
[347559620,1735918236521,-404.28805287,0.00019452,3]
[347559621,1735918236530,-645.56863498,0.00019452,3]
[347559622,1735918236539,-1109.67,0.00019452,3]
[347559623,1735918236548,-500.0,0.00019452,3]
[347559624,1735918236557,-4685.4,0.00019452,3]
[347559625,1735918236566,-500.0,0.00019452,3]
[347559626,1735918236575,-500.0,0.00019452,3]
[347559627,1735918236584,-500.0,0.00019452,3]
[347559628,1735918236594,-791.09,0.00019452,3]
[347559629,1735918236604,-500.0,0.00019452,3]
[347559630,1735918236613,-500.0,0.00019452,3]
[347559631,1735918236622,-500.0,0.00019452,3]
[347559632,1735918236632,-204.9082075,0.00019452,3]
[347559634,1735918236641,-500.0,0.00019452,3]
[347559636,1735918236651,-500.0,0.00019452,3]
[347559638,1735918236661,-1353.5,0.00019452,3]
[347559640,1735918236671,-500.0,0.00019452,3]
[347559642,1735918236680,-599.7,0.00019452,3]
[347559644,1735918236694,-769.65,0.00019452,3]
[347559646,1735918236706,-500.0,0.00019452,3]
[347559648,1735918236720,-500.0,0.00019452,3]
[347559650,1735918236729,-500.0,0.00019452,3]
[347559652,1735918236738,-1062.21,0.00019452,3]
[347559669,1735918236879,-500.0,0.00019452,3]
[347559671,1735918236890,-2402.06,0.00019452,3]
[347559673,1735918236899,-500.0,0.00019452,3]
[347559675,1735918236909,-500.0,0.00019452,3]
[347559677,1735918236919,-1513.24,0.00019452,3]
[347559679,1735918236928,-500.0,0.00019452,3]
[347559681,1735918236938,-500.0,0.00019452,3]
[347559683,1735918236949,-2757.07,0.00019452,3]
[347559685,1735918236961,-815.87,0.00019452,3]
[347559687,1735918236970,-500.0,0.00019452,3]
[347559689,1735918236979,-500.0,0.00019452,3]
[347559691,1735918236988,-1161.28,0.00019452,3]
[347559693,1735918236998,-612.63,0.00019452,3]
[347559695,1735918237007,-500.0,0.00019452,3]
[347559697,1735918237022,-644.88901626,0.00019452,3]
[347559699,1735918237032,-500.0,0.00019452,3]
[347559701,1735918237042,-500.0,0.00019452,3]
[347559703,1735918237052,-1355.22,0.00019452,3]
[347559705,1735918237061,-628.54,0.00019452,3]
[347559707,1735918237071,-500.0,0.00019452,3]
[347559709,1735918237080,-500.0,0.00019452,3]
[347559711,1735918237089,-500.0,0.00019452,3]
[347559713,1735918237099,-500.0,0.00019452,3]
[347559715,1735918237108,-500.0,0.00019452,3]
[347559717,1735918237118,-1018.71,0.00019452,3]
[347559719,1735918237128,-500.0,0.00019473,2]
[347559721,1735918237136,-410.52193341,0.00019473,2]
[347559723,1735918237146,-500.0,0.00019473,2]
[347559725,1735918237155,-2821.15,0.000195,2]
[347559727,1735918237165,-9516.36,0.000195,2]
[347559729,1735918237174,-151.0,0.000196,2]
[347559731,1735918237183,-500.0,0.0001962,2]
[347559733,1735918237202,-151.437,0.0001962,2]
[347559734,1735918237211,-1161.45371576,0.0001962,2]
[347559817,1735918238291,-1525.7,0.00019178,2]
[347559818,1735918238302,-38.54628424,0.0001962,2]
[347559819,1735918238311,-151.0,0.000197,2]
[347559820,1735918238321,-171.90349462,0.00019725,2]
[347559821,1735918238331,-160.44363532,0.00019725,2]
[347559822,1735918238340,-608.81352039,0.00019725,2]
[347559823,1735918238350,-77.81876797,0.00019726,2]
[347559825,1735918238363,-423.79166931,0.00019726,2]
[347559827,1735918238374,-9529.45529506,0.00019726,2]
[347559829,1735918238383,-350.0,0.00019726,3]
[347559832,1735918238392,-201.0,0.00019726,2]
[347559834,1735918238402,-500.0,0.00019726,3]
[347559836,1735918238411,-500.0,0.00019726,3]
[347559838,1735918238420,-500.0,0.00019726,3]
[347559839,1735918238429,-500.0,0.00019726,3]
[347559841,1735918238441,-402.33746573,0.00019726,3]
[347559842,1735918238450,-500.0,0.00019726,3]
[347559843,1735918238459,-500.0,0.00019726,3]
[347559844,1735918238468,-500.0,0.00019726,3]
[347559845,1735918238477,-1023.31,0.00019726,3]
[347559847,1735918238486,-500.0,0.00019726,3]
[347559849,1735918238495,-500.0,0.00019726,3]
[347559850,1735918238505,-519.46,0.00019726,3]
[347559851,1735918238515,-437.41065075,0.00019726,3]
[347559891,1735918240048,-159.60162157,0.00019177,2]
[347559893,1735918240058,-500.0,0.00019178,2]
[347559895,1735918240067,-500.0,0.00019178,2]
[347559897,1735918240077,-500.0,0.00019178,2]
[347559899,1735918240087,-2674.29378987,0.00019352,2]
[347559901,1735918240096,-1525.7,0.00019452,3]
[347559903,1735918240105,-500.0,0.00019452,3]
[347559905,1735918240115,-236.73792035,0.00019452,3]
[347559908,1735918240131,-263.26207965,0.00019452,3]
[347559910,1735918240140,-44.97961575,0.00019726,3]
[347560085,1735918243281,-42.86751827,0.00019178,2]
[347560088,1735918243294,-2978.57248173,0.00019178,2]
[347560090,1735918243303,-500.0,0.00019452,3]
[347560092,1735918243312,-3021.44,0.00019452,3]
[347560094,1735918243322,-558.00038425,0.00019726,3]
[347560096,1735918243332,-500.0,0.00019726,3]
[347560098,1735918243341,-500.0,0.00019726,3]
[347560100,1735918243351,-698.37,0.00019726,3]
[347560102,1735918243360,-500.0,0.00019726,3]
[347560103,1735918243370,-500.0,0.00019726,3]
[347560106,1735918243379,-626.11,0.00019726,3]
[347560108,1735918243389,-742.77,0.00019726,3]
[347560109,1735918243398,-500.0,0.00019726,3]
[347560111,1735918243408,-500.0,0.00019726,3]
[347560113,1735918243417,-500.0,0.00019726,3]
[347560115,1735918243426,-500.0,0.00019726,3]
[347560117,1735918243439,-1188.03,0.00019726,3]
[347560119,1735918243448,-500.0,0.00019726,3]
[347560121,1735918243459,-4969.8550395,0.00019726,3]
[347560124,1735918243472,-448.77767333,0.00019726,3]
[347560291,1735918246035,-500.0,0.00019178,2]
[347560292,1735918246045,-500.0,0.00019178,2]
[347560293,1735918246056,-1982.84728717,0.00019726,3]
[347560294,1735918246065,-1093.78,0.00019726,3]
[347560295,1735918246075,-500.0,0.00019726,3]
[347560296,1735918246084,-500.0,0.00019726,3]
[347560297,1735918246094,-530.47,0.00019726,3]
[347560298,1735918246103,-500.0,0.00019726,3]
[347560299,1735918246113,-1274.22,0.00019726,3]
[347560300,1735918246122,-500.0,0.00019726,3]
[347560301,1735918246132,-500.0,0.00019726,3]
[347560302,1735918246142,-106.68284383,0.00019726,3]
[347560303,1735918246154,-393.31715617,0.00019726,3]
[347560305,1735918246163,-500.0,0.00019726,3]
[347560306,1735918246171,-564.07,0.00019726,3]
[347560307,1735918246181,-500.0,0.00019726,3]
[347560308,1735918246190,-797.09,0.00019726,3]
[347560309,1735918246200,-500.0,0.00019726,3]
[347560310,1735918246209,-500.0,0.00019726,3]
[347560311,1735918246219,-500.0,0.00019726,3]
[347560312,1735918246227,-526.44,0.00019726,3]
[347560313,1735918246237,-500.0,0.00019726,3]
[347560314,1735918246246,-629.64,0.00019726,3]
[347560315,1735918246255,-984.24,0.00019726,3]
[347560316,1735918246264,-500.0,0.00019726,3]
[347560317,1735918246273,-721.57,0.00019726,3]
[347560318,1735918246283,-262.94729722,0.00019726,3]
[347560319,1735918246292,-500.0,0.00019726,3]
[347560320,1735918246301,-500.0,0.00019726,3]
[347560321,1735918246311,-500.0,0.00019726,3]
[347560322,1735918246319,-677.7,0.00019726,3]
[347560323,1735918246328,-500.0,0.00019726,3]
[347560324,1735918246338,-500.0,0.00019726,3]
[347560325,1735918246347,-500.0,0.00019726,3]
[347560326,1735918246357,-756.24,0.00019726,3]
[347560327,1735918246366,-500.0,0.00019726,3]
[347560328,1735918246375,-500.0,0.00019726,3]
[347560329,1735918246384,-500.0,0.00019726,3]
[347560330,1735918246394,-1193.89,0.00019726,3]
[347560331,1735918246403,-500.0,0.00019726,3]
[347560332,1735918246412,-507.7482609,0.00019726,3]
[347560333,1735918246422,-329.70903579,0.00019726,3]
[347560334,1735918246431,-500.0,0.00019726,3]
[347560335,1735918246441,-500.0,0.00019726,3]
[347560336,1735918246452,-500.0,0.00019726,3]
[347560337,1735918246461,-500.0,0.00019726,3]
[347560338,1735918246470,-132.99824992,0.00019726,3]
[347560339,1735918246482,-490.57799653,0.00019726,3]
[347560340,1735918246501,-1175.249427,0.00019726,3]
[347560341,1735918246530,-262.11617221,0.00019726,3]
[347560343,1735918246541,-676.52815434,0.00019726,3]
[347560358,1735918246674,-1252.14,0.00019726,2]
[347560360,1735918246685,-486.27790356,0.00019726,3]
[347560362,1735918246695,-500.0,0.00019726,3]
[347560364,1735918246704,-500.0,0.00019726,3]
[347560366,1735918246713,-500.0,0.00019726,3]
[347560368,1735918246723,-569.89,0.00019726,3]
[347560370,1735918246732,-500.0,0.00019726,3]
[347560372,1735918246742,-500.0,0.00019726,3]
[347560374,1735918246750,-500.0,0.00019726,3]
[347560376,1735918246760,-531.11,0.00019726,3]
[347560378,1735918246769,-500.0,0.00019726,3]
[347560380,1735918246777,-500.0,0.00019726,3]
[347560382,1735918246787,-1198.87,0.00019726,3]
[347560384,1735918246796,-88.63589134,0.00019726,3]
[347560508,1735918295206,448.908,0.0001874,2]
[347560516,1735918377667,222.422338,0.00013973,2]
[347560520,1735918699206,200.0,0.00025,120]
[347560522,1735918714786,166.24,0.00025,120]
[347560524,1735919020799,150.55,0.00013699,2]
[347560525,1735919021119,150.55,0.00013699,2]
[347560526,1735919021458,150.57583479,0.00013699,2]
[347560527,1735919069083,160.0,0.00025,120]
[347560529,1735919234756,234.372389,0.00013973,2]
[347560530,1735919345117,-558.08349353,0.0001782,2]
[347560531,1735919345139,-2006.02356549,0.00018,2]
[347560532,1735919367118,-939.97643451,0.00018,2]
[347560533,1735919367142,-310.346892,0.00018345,2]
[347560534,1735919367166,-470.945,0.0001874,2]
[347560583,1735919432663,-1005.20485788,0.00018999,2]
[347560585,1735919432672,-300.0,0.00018999,2]
[347560586,1735919432682,-3362.6238679,0.00019,2]
[347560587,1735919432694,-22218.71082936,0.00019,2]
[347560588,1735919432705,-24418.66530274,0.00019,2]
[347560589,1735919432715,-865.56344924,0.00019077,2]
[347560591,1735919432724,-193.26,0.00019177,2]
[347560592,1735919432733,-500.0,0.00019177,5]
[347560594,1735919432743,-499.0,0.00019177,2]
[347560596,1735919432752,-502.77137632,0.00019177,2]
[347560598,1735919432761,-206.05045402,0.00019177,2]
[347560599,1735919432770,-500.0,0.00019177,2]
[347560601,1735919432780,-500.0,0.00019177,2]
[347560603,1735919432789,-500.0,0.00019177,2]
[347560605,1735919432798,-500.0,0.00019177,2]
[347560607,1735919432809,-500.0,0.00019177,2]
[347560609,1735919432819,-500.0,0.00019177,2]
[347560611,1735919432829,-162.03640781,0.00019177,2]
[347560613,1735919432838,-423.22332398,0.00019177,2]
[347560615,1735919432848,-500.0,0.00019178,2]
[347560617,1735919432857,-500.0,0.00019178,2]
[347560619,1735919432877,-125.42968593,0.00019178,2]
[347560621,1735919432891,-309.7139885,0.00019178,2]
[347560623,1735919432903,-64.85632557,0.00019178,2]
[347560625,1735919432913,-500.0,0.00019178,2]
[347560627,1735919432922,-500.0,0.00019178,2]
[347560629,1735919432932,-506.2684061,0.00019178,2]
[347560631,1735919432942,-500.0,0.00019178,2]
[347560632,1735919432951,-504.49525942,0.00019178,2]
[347560634,1735919432962,-507.07605393,0.00019178,2]
[347560636,1735919432971,-500.0,0.00019178,2]
[347560638,1735919432980,-500.0,0.00019178,2]
[347560639,1735919432990,-507.40399964,0.00019178,2]
[347560641,1735919433000,-479.27346794,0.00019178,2]
[347560643,1735919433012,-20.72653206,0.00019178,2]
[347560645,1735919433022,-500.0,0.00019178,2]
[347560647,1735919433032,-500.0,0.00019178,2]
[347560649,1735919433042,-500.0,0.00019178,2]
[347560651,1735919433051,-500.0,0.00019178,2]
[347560653,1735919433061,-500.0,0.00019178,2]
[347560654,1735919433072,-500.0,0.00019178,2]
[347560656,1735919433082,-500.0,0.00019178,2]
[347560658,1735919433091,-500.0,0.00019178,2]
[347560660,1735919433101,-500.0,0.00019178,2]
[347560662,1735919433111,-260.96089973,0.00019178,2]
[347560664,1735919433121,-509.54299489,0.00019178,2]
[347560666,1735919433130,-500.0,0.00019178,2]
[347560668,1735919433140,-500.0,0.00019178,2]
[347560669,1735919433150,-500.0,0.00019178,2]
[347560671,1735919433160,-500.0,0.00019178,2]
[347560673,1735919433170,-500.0,0.00019178,2]
[347560675,1735919433183,-500.0,0.00019178,2]
[347560677,1735919433194,-4294.95,0.00019178,2]
[347560679,1735919433204,-500.0,0.00019178,2]
[347560681,1735919433213,-500.0,0.00019178,2]
[347560683,1735919433223,-272.26056296,0.00019178,2]
[347560685,1735919433237,-227.73943704,0.00019178,2]
[347560687,1735919433246,-500.0,0.00019178,2]
[347560689,1735919433256,-500.0,0.00019178,2]
[347560691,1735919433266,-500.0,0.00019178,2]
[347560692,1735919433276,-272.26056296,0.00019178,2]
[347560695,1735919433289,-227.73943704,0.00019178,2]
[347560696,1735919433302,-24.11739906,0.00019178,2]
[347561139,1735919438317,-475.88260094,0.00019178,2]
[347561141,1735919438327,-500.0,0.00019178,2]
[347561143,1735919438337,-510.64323945,0.00019178,2]
[347561145,1735919438348,-500.0,0.00019178,2]
[347561147,1735919438360,-500.0,0.00019178,2]
[347561149,1735919438372,-1174.81,0.00019178,2]
[347561151,1735919438383,-500.0,0.00019178,2]
[347561153,1735919438393,-500.0,0.00019178,2]
[347561155,1735919438403,-500.0,0.00019178,2]
[347561157,1735919438413,-500.0,0.00019178,2]
[347561159,1735919438423,-500.0,0.00019178,2]
[347561161,1735919438434,-500.0,0.00019178,2]
[347561164,1735919438445,-500.0,0.00019178,2]
[347561166,1735919438456,-502.37061154,0.00019178,2]
[347561168,1735919438465,-500.0,0.00019178,2]
[347561170,1735919438476,-500.0,0.00019178,2]
[347561172,1735919438486,-500.0,0.00019178,2]
[347561174,1735919438497,-39.19279807,0.00019178,2]
[347561190,1735919438642,-2888.66720193,0.00019178,2]
[347561192,1735919438652,-522.28,0.00019178,2]
[347561194,1735919438661,-649.17,0.00019178,2]
[347561196,1735919438671,-500.0,0.00019178,2]
[347561198,1735919438680,-582.02,0.00019178,2]
[347561200,1735919438689,-500.0,0.00019178,2]
[347561201,1735919438699,-500.0,0.00019178,2]
[347561202,1735919438708,-500.0,0.00019178,2]
[347561203,1735919438717,-500.0,0.00019178,2]
[347561204,1735919438727,-500.0,0.00019178,2]
[347561205,1735919438736,-500.0,0.00019178,2]
[347561206,1735919438746,-500.0,0.00019178,2]
[347561207,1735919438756,-500.0,0.00019178,2]
[347561208,1735919438766,-500.0,0.00019178,2]
[347561210,1735919438775,-500.0,0.00019178,2]
[347561211,1735919438784,-500.0,0.00019178,2]
[347561212,1735919438794,-500.0,0.00019178,2]
[347561213,1735919438803,-500.0,0.00019178,2]
[347561214,1735919438812,-500.0,0.00019178,2]
[347561215,1735919438823,-763.65,0.00019178,2]
[347561216,1735919438833,-500.0,0.00019178,2]
[347561217,1735919438842,-506.48740966,0.00019178,2]
[347561218,1735919438851,-500.0,0.00019178,2]
[347561219,1735919438860,-500.0,0.00019178,2]
[347561220,1735919438870,-733.11,0.00019178,2]
[347561222,1735919438879,-500.0,0.00019178,2]
[347561224,1735919438889,-500.0,0.00019178,2]
[347561226,1735919438899,-641.2572426,0.00019178,2]
[347561228,1735919438909,-500.0,0.00019178,2]
[347561230,1735919438918,-500.0,0.00019178,2]
[347561232,1735919438928,-1105.36,0.00019178,2]
[347561234,1735919438937,-500.0,0.00019178,2]
[347561236,1735919438946,-1189.47,0.00019178,2]
[347561238,1735919438955,-500.0,0.00019178,2]
[347561241,1735919438969,-500.0,0.00019178,2]
[347561243,1735919438978,-1038.41,0.00019178,2]
[347561245,1735919438987,-500.0,0.00019178,2]
[347561246,1735919438997,-500.0,0.00019178,2]
[347561249,1735919439007,-500.0,0.00019178,2]
[347561250,1735919439016,-181.85902498,0.00019178,2]
[347561252,1735919439025,-500.0,0.00019178,2]
[347561254,1735919439034,-500.0,0.00019178,2]
[347561273,1735919439213,-697.45,0.00019178,2]
[347561275,1735919439224,-503.14828371,0.00019178,2]
[347561277,1735919439234,-500.0,0.00019178,2]
[347561279,1735919439243,-525.27,0.00019178,2]
[347561281,1735919439252,-500.0,0.00019178,2]
[347561283,1735919439262,-500.0,0.00019178,2]
[347561285,1735919439271,-500.0,0.00019178,2]
[347561287,1735919439280,-500.0,0.00019178,2]
[347561289,1735919439292,-500.0,0.00019178,2]
[347561291,1735919439304,-500.0,0.00019178,2]
[347561293,1735919439315,-500.0,0.00019178,2]
[347561295,1735919439324,-500.0,0.00019178,2]
[347561297,1735919439335,-505.00623666,0.00019178,2]
[347561299,1735919439344,-500.0,0.00019178,2]
[347561301,1735919439353,-500.0,0.00019178,2]
[347561303,1735919439363,-500.0,0.00019178,2]
[347561305,1735919439372,-501.60607898,0.00019178,2]
[347561307,1735919439383,-500.0,0.00019178,2]
[347561309,1735919439392,-280.2065614,0.00019178,2]
[347561312,1735919439406,-219.7934386,0.00019178,2]
[347561313,1735919439416,-38.6470614,0.00019178,2]
[347561316,1735919439427,-539.09777032,0.00019178,2]
[347561318,1735919439439,-40.03516828,0.00019178,2]
[347561320,1735919439449,-1096.56,0.00019178,2]
[347561322,1735919439459,-500.0,0.00019178,2]
[347561324,1735919439469,-671.06,0.00019178,2]
[347561326,1735919439478,-500.0,0.00019178,2]
[347561328,1735919439488,-500.0,0.00019178,2]
[347561330,1735919439497,-500.0,0.00019178,2]
[347561332,1735919439507,-500.0,0.00019178,2]
[347561334,1735919439517,-500.0,0.00019178,2]
[347561336,1735919439526,-592.99,0.00019178,2]
[347561338,1735919439536,-500.0,0.00019178,2]
[347561340,1735919439545,-500.0,0.00019178,2]
[347561342,1735919439556,-1000.0,0.00019178,2]
[347561344,1735919439567,-500.0,0.00019178,2]
[347561346,1735919439576,-500.0,0.00019178,2]
[347561348,1735919439586,-500.0,0.00019178,2]
[347561350,1735919439595,-500.0,0.00019178,2]
[347561352,1735919439605,-500.0,0.00019178,2]
[347561354,1735919439615,-500.0,0.00019178,2]
[347561356,1735919439624,-500.0,0.00019178,2]
[347561358,1735919439633,-500.0,0.00019178,2]
[347561360,1735919439642,-587.33,0.00019178,2]
[347561362,1735919439652,-500.0,0.00019178,2]
[347561365,1735919439662,-500.0,0.00019178,2]
[347561367,1735919439671,-661.71,0.00019178,2]
[347561369,1735919439681,-151.0,0.00019178,2]
[347561371,1735919439691,-539.93542246,0.00019178,2]
[347561373,1735919439700,-918.26,0.00019178,2]
[347561375,1735919439711,-500.0,0.00019178,2]
[347561377,1735919439721,-500.0,0.00019178,2]
[347561379,1735919439731,-500.0,0.00019178,2]
[347561381,1735919439741,-500.0,0.00019178,2]
[347561383,1735919439750,-500.0,0.00019178,2]
[347561385,1735919439760,-502.77429682,0.00019178,2]
[347561387,1735919439771,-500.0,0.00019178,2]
[347561389,1735919439781,-500.0,0.00019178,2]
[347561391,1735919439790,-500.0,0.00019178,2]
[347561393,1735919439800,-502.71705809,0.00019178,2]
[347561395,1735919439809,-500.0,0.00019178,2]
[347561397,1735919439821,-500.23903858,0.00019178,2]
[347561400,1735919439831,-480.34737165,0.00019178,2]
[347561402,1735919439840,-114.62315367,0.00019178,2]
[347561406,1735919439852,-385.37684633,0.00019178,2]
[347561409,1735919439862,-500.0,0.00019178,2]
[347561413,1735919439871,-137.83315367,0.00019178,2]
[347561417,1735919439883,-362.16684633,0.00019178,2]
[347561419,1735919439892,-500.0,0.00019178,2]
[347561421,1735919439903,-500.0,0.00019178,2]
[347561423,1735919439913,-500.0,0.00019178,2]
[347561425,1735919439923,-500.0,0.00019178,2]
[347561427,1735919439932,-151.0,0.00019178,2]
[347561429,1735919439942,-500.0,0.00019178,2]
[347561431,1735919439951,-500.0,0.00019178,2]
[347561433,1735919439960,-151.0,0.00019178,2]
[347561435,1735919439970,-500.0,0.00019178,2]
[347561437,1735919439980,-500.0,0.00019178,2]
[347561440,1735919439990,-501.03313542,0.00019178,2]
[347561442,1735919439999,-500.0,0.00019178,2]
[347561443,1735919440009,-500.0,0.00019178,2]
[347561445,1735919440018,-500.0,0.00019178,2]
[347561447,1735919440029,-500.0,0.00019178,2]
[347561449,1735919440039,-500.0,0.00019178,2]
[347561451,1735919440048,-500.0,0.00019178,2]
[347561453,1735919440058,-114.28032067,0.00019178,2]
[347561468,1735919440197,-385.71967933,0.00019178,2]
[347561470,1735919440208,-500.0,0.00019178,2]
[347561472,1735919440218,-500.0,0.00019178,2]
[347561474,1735919440227,-500.0,0.00019178,2]
[347561476,1735919440237,-1116.45,0.00019178,2]
[347561478,1735919440247,-500.0,0.00019178,2]
[347561480,1735919440257,-521.93,0.00019178,2]
[347561482,1735919440266,-2508.95,0.00019178,2]
[347561484,1735919440276,-500.0,0.00019178,2]
[347561486,1735919440286,-500.0,0.00019178,2]
[347561488,1735919440296,-500.0,0.00019178,2]
[347561490,1735919440308,-500.0,0.00019178,2]
[347561492,1735919440321,-500.0,0.00019178,2]
[347561494,1735919440331,-500.0,0.00019178,2]
[347561496,1735919440341,-500.0,0.00019178,2]
[347561498,1735919440351,-3114.49,0.00019178,2]
[347561500,1735919440361,-34903.05,0.00019178,2]
[347561503,1735919440371,-500.0,0.00019178,2]
[347561505,1735919440383,-500.0,0.00019178,2]
[347561507,1735919440393,-500.0,0.00019178,2]
[347561509,1735919440402,-500.0,0.00019178,2]
[347561510,1735919440411,-500.0,0.00019178,2]
[347561513,1735919440421,-500.0,0.00019178,2]
[347561515,1735919440431,-268.78096561,0.00019178,2]
[347561517,1735919440440,-500.0,0.00019178,2]
[347561518,1735919440450,-500.0,0.00019178,2]
[347561521,1735919440459,-1049.01,0.00019178,2]
[347561522,1735919440470,-4058.16,0.00019178,2]
[347561524,1735919440479,-829.27,0.00019178,2]
[347561526,1735919440488,-500.0,0.00019178,2]
[347561528,1735919440498,-500.0,0.00019178,2]
[347561531,1735919440508,-500.0,0.00019178,2]
[347561533,1735919440517,-1297.68,0.00019178,2]
[347561534,1735919440527,-503.38062172,0.00019178,2]
[347561536,1735919440537,-500.0,0.00019178,2]
[347561538,1735919440546,-500.0,0.00019178,2]
[347561540,1735919440556,-500.0,0.00019178,2]
[347561542,1735919440566,-151.0,0.00019178,2]
[347561544,1735919440576,-500.0,0.00019178,2]
[347561547,1735919440586,-151.0,0.00019178,2]
[347561548,1735919440595,-1377.63,0.00019178,2]
[347561550,1735919440604,-500.0,0.00019178,2]
[347561552,1735919440614,-500.0,0.00019178,2]
[347561554,1735919440624,-502.33266393,0.00019178,2]
[347561556,1735919440633,-1312.55,0.00019178,2]
[347561558,1735919440643,-500.0,0.00019178,2]
[347561560,1735919440652,-500.0,0.00019178,2]
[347561562,1735919440661,-500.0,0.00019178,2]
[347561564,1735919440671,-500.0,0.00019178,2]
[347561566,1735919440680,-500.0,0.00019178,2]
[347561568,1735919440690,-500.0,0.00019178,2]
[347561570,1735919440700,-500.0,0.00019178,2]
[347561572,1735919440709,-500.0,0.00019178,2]
[347561574,1735919440718,-500.0,0.00019178,2]
[347561576,1735919440728,-8234.37,0.00019178,2]
[347561578,1735919440737,-500.0,0.00019178,2]
[347561580,1735919440746,-500.0,0.00019178,2]
[347561582,1735919440754,-500.0,0.00019178,2]
[347561584,1735919440764,-500.0,0.00019178,2]
[347561586,1735919440773,-151.0,0.00019178,2]
[347561588,1735919440782,-500.0,0.00019178,2]
[347561590,1735919440792,-500.0,0.00019178,2]
[347561592,1735919440801,-505.34,0.00019178,2]
[347561594,1735919440810,-1017.2,0.00019178,2]
[347561596,1735919440824,-500.0,0.00019178,2]
[347561598,1735919440833,-500.0,0.00019178,2]
[347561600,1735919440842,-500.0,0.00019178,2]
[347561602,1735919440852,-500.0,0.00019178,2]
[347561604,1735919440862,-500.0,0.00019178,2]
[347561606,1735919440871,-612.09,0.00019178,2]
[347561608,1735919440881,-500.0,0.00019178,2]
[347561610,1735919440890,-500.0,0.00019178,2]
[347561612,1735919440900,-500.0,0.00019178,2]
[347561614,1735919440909,-500.0,0.00019178,2]
[347561616,1735919440918,-500.0,0.00019178,2]
[347561618,1735919440927,-500.0,0.00019178,2]
[347561620,1735919440936,-2201.89,0.00019178,2]
[347561622,1735919440946,-500.0,0.00019178,2]
[347561624,1735919440955,-502.16244357,0.00019178,2]
[347561626,1735919440964,-500.0,0.00019178,2]
[347561628,1735919440973,-500.0,0.00019178,2]
[347561630,1735919440983,-500.0,0.00019178,2]
[347561632,1735919440993,-621.05839653,0.00019178,2]
[347561634,1735919441002,-500.0,0.00019178,2]
[347561636,1735919441012,-500.0,0.00019178,2]
[347561638,1735919441021,-495.761618,0.00019178,2]
[347561640,1735919441032,-500.0,0.00019178,2]